[Event "African Online-ch Women 2021"]
[Site "Online"]
[Date "2021.02.01"]
[Round "7.10"]
[White "Maingi, Sasha"]
[Black "Joao, Delfina"]
[Result "1/2-1/2"]
[ECO "C00"]
[WhiteElo "1599"]
[BlackElo "1727"]
[Annotator "NA RC"]
[PlyCount "102"]
[EventDate "2021.02.01"]
[EventType "swiss"]
[EventCountry "NET"]
[SourceTitle "playchess.com"]
[Source "ChessBase"]
[SourceQuality "1"]
[TimeControl "1500+10"]

1. e4 {[%emt 0:00:00]} e6 {[%emt 0:00:06]} 2. d3 {[%emt 0:00:14]} d5 {[%emt 0:00:05]} 3. Nd2 {[%emt 0:00:05]} Nf6 {[%emt 0:00:17]} 4. Ngf3 {[%emt 0:00:25]} c5 {[%emt 0:00:12]} 5. g3 {[%emt 0:00:22]} Nc6 {[%emt 0:00:45]} 6. Bg2 {[%emt 0:00:22]} Be7 {[%emt 0:00:28]} 7. O-O {[%emt 0:00:10]} O-O {[%emt 0:00:06]} 8. Re1 {[%emt 0:00:38]} Qc7 {[%emt 0:00:13]} 9. c3 {[%emt 0:00:59]} dxe4 {[%emt 0:01:00]} 10. dxe4 {[%emt 0:00:44]} Rd8 {[%emt 0:00:32]} 11. Qc2 {[%emt 0:00:17]} b6 {[%emt 0:00:59]} 12. Nc4 {[%emt 0:00:13]} e5 {[%emt 0:01:07]} 13. Bg5 {[%emt 0:00:47]} Ba6 {[%emt 0:00:32]} 14. Bf1 {[%emt 0:02:36]} Bxc4 {[%emt 0:00:38]} 15. Bxc4 {[%emt 0:00:08]} Rd7 {[%emt 0:00:18]} 16. Bxf6 {[%emt 0:01:29]} Bxf6 {[%emt 0:00:07]} 17. Bd5 {[%emt 0:00:08]} Rad8 {[%emt 0:00:10]} 18. Rad1 {[%emt 0:00:07]} Kf8 {[%emt 0:01:07]} 19. Qa4 {[%emt 0:03:06]} Rd6 {[%emt 0:03:56]} 20. Rd2 {[%emt 0:01:10]} Ne7 {[%emt 0:01:26]} 21. Qc4 {[%emt 0:04:15]} Qd7 {[%emt 0:01:41]} 22. Red1 {[%emt 0:01:11]} Qg4 {[%emt 0:02:41]} 23. Qe2 {[%emt 0:01:36]} Nxd5 {[%emt 0:01:49]} 24. Rxd5 {[%emt 0:00:21]} Rxd5 {[%emt 0:00:11]} 25. Rxd5 {[%emt 0:00:37]} Rxd5 {[%emt 0:00:07]} 26. exd5 {[%emt 0:00:25]} e4 {[%emt 0:00:09]} 27. Nd4 {[%emt 0:01:41]} Qd7 {[%emt 0:01:17]} 28. Nc6 {[%emt 0:01:24]} Qxd5 {[%emt 0:00:46]} 29. Nxa7 {[%emt 0:00:18]} Qxa2 {[%emt 0:00:13]} 30. Nc8 {[%emt 0:00:28]} Qb1+ {[%emt 0:00:22]} 31. Kg2 {[%emt 0:00:20]} Qd3 {[%emt 0:01:21]} 32. Qxd3 {[%emt 0:01:50]} exd3 {[%emt 0:00:05]} 33. Kf3 {[%emt 0:00:08]} b5 {[%emt 0:01:29]} 34. Nd6 {[%emt 0:00:04]} b4 {[%emt 0:00:09]} 35. cxb4 {[%emt 0:00:08]} cxb4 {[%emt 0:00:08]} 36. b3 {[%emt 0:00:04]} d2 {[%emt 0:00:20]} 37. Ke2 {[%emt 0:00:05]} Bc3 {[%emt 0:00:07]} 38. Ne4 {[%emt 0:00:05]} Ke7 {[%emt 0:00:16]} 39. Nxd2 {[%emt 0:00:38]} Bxd2 {[%emt 0:00:09]} 40. Kxd2 {[%emt 0:00:03]} Kd6 {[%emt 0:00:04]} 41. Ke3 {[%emt 0:00:17]} Ke5 {[%emt 0:00:12]} 42. f4+ {[%emt 0:00:22]} Kd5 {[%emt 0:00:14]} 43. g4 {[%emt 0:00:26]} h6 {[%emt 0:00:25]} 44. h3 {[%emt 0:00:23]} g6 {[%emt 0:00:07]} 45. h4 {[%emt 0:00:13]} f5 {[%emt 0:00:57]} 46. gxf5 {[%emt 0:00:52]} gxf5 {[%emt 0:00:17]} 47. Kd3 {[%emt 0:00:17]} h5 {[%emt 0:00:20]} 48. Ke3 {[%emt 0:00:03]} Kc5 {[%emt 0:00:08]} 49. Kd3 {[%emt 0:00:03]} Kd5 {[%emt 0:00:06]} 50. Ke3 {[%emt 0:00:03]} Kc5 {[%emt 0:00:02]} 51. Kd3 {[%emt 0:00:02]} Kd5 {[%emt 0:00:04]} 1/2-1/2

[Event "African Online-ch Women 2021"]
[Site "Online"]
[Date "2021.02.01"]
[Round "7.11"]
[White "Farnela, Nuzela Zacarias Musi"]
[Black "Sitoe, Cheila Andre"]
[Result "0-1"]
[ECO "C50"]
[WhiteElo "1431"]
[BlackElo "1588"]
[Annotator "NA RC"]
[PlyCount "38"]
[EventDate "2021.02.01"]
[EventType "swiss"]
[EventCountry "NET"]
[SourceTitle "playchess.com"]
[Source "ChessBase"]
[SourceQuality "1"]
[TimeControl "1500+10"]

1. e4 {[%emt 0:00:00]} e5 {[%emt 0:00:14]} 2. Nf3 {[%emt 0:00:18]} Nc6 {[%emt 0:00:08]} 3. Bc4 {[%emt 0:00:46]} Bc5 {[%emt 0:00:06]} 4. d3 {[%emt 0:00:25]} Nf6 {[%emt 0:00:16]} 5. Nc3 {[%emt 0:00:13]} h6 {[%emt 0:00:12]} 6. h3 {[%emt 0:01:05]} d6 {[%emt 0:00:06]} 7. Bd2 {[%emt 0:00:08]} Be6 {[%emt 0:00:21]} 8. Bb5 {[%emt 0:00:48]} O-O {[%emt 0:00:07]} 9. Na4 {[%emt 0:00:39]} Bb6 {[%emt 0:00:10]} 10. Nxb6 {[%emt 0:00:15]} axb6 {[%emt 0:00:05]} 11. Bxc6 {[%emt 0:00:10]} bxc6 {[%emt 0:00:04]} 12. O-O {[%emt 0:00:14]} c5 {[%emt 0:00:17]} 13. a3 {[%emt 0:00:06]} Nh7 {[%emt 0:00:26]} 14. Nh2 {[%emt 0:00:16]} f5 {[%emt 0:00:05]} 15. exf5 {[%emt 0:00:51]} Rxf5 {[%emt 0:00:17]} 16. Qg4 {[%emt 0:00:37]} Rf6 {[%emt 0:00:13]} 17. Qg3 {[%emt 0:00:39]} Qd7 {[%emt 0:00:08]} 18. f4 {[%emt 0:00:55]} exf4 {[%emt 0:00:15]} 19. Rf3 {[%emt 0:00:33]} fxg3 {[%emt 0:00:06]} 0-1

[Event "African Online-ch Women 2021"]
[Site "Online"]
[Date "2021.02.01"]
[Round "7.12"]
[White "Malehloa, Likhomo"]
[Black "Ben Said, Safa"]
[Result "0-1"]
[ECO "D00"]
[WhiteElo "1331"]
[BlackElo "1577"]
[Annotator "NA RC"]
[PlyCount "180"]
[EventDate "2021.02.01"]
[EventType "swiss"]
[EventCountry "NET"]
[SourceTitle "playchess.com"]
[Source "ChessBase"]
[SourceQuality "1"]
[TimeControl "1500+10"]

1. d4 {[%emt 0:00:00]} d5 {[%emt 0:00:09]} 2. Nc3 {[%emt 0:00:11]} Nf6 {[%emt 0:00:11]} 3. Bf4 {[%emt 0:00:06]} Bf5 {[%emt 0:00:19]} 4. Nb5 {[%emt 0:00:09]} Na6 {[%emt 0:00:09]} 5. e3 {[%emt 0:00:08]} e6 {[%emt 0:00:09]} 6. Nf3 {[%emt 0:01:02]} c6 {[%emt 0:00:04]} 7. Nc3 {[%emt 0:00:05]} Nb4 {[%emt 0:01:00]} 8. Bd3 {[%emt 0:00:07]} Bg6 {[%emt 0:04:04]} 9. a3 {[%emt 0:00:23]} Nxd3+ {[%emt 0:00:27]} 10. cxd3 {[%emt 0:00:06]} Qa5 {[%emt 0:00:05]} 11. O-O {[%emt 0:00:16]} Be7 {[%emt 0:00:17]} 12. Ne5 {[%emt 0:00:14]} O-O {[%emt 0:00:11]} 13. Nxg6 {[%emt 0:00:07]} fxg6 {[%emt 0:00:04]} 14. Be5 {[%emt 0:00:29]} Nd7 {[%emt 0:00:10]} 15. Qg4 {[%emt 0:01:32]} Rf5 {[%emt 0:05:28]} 16. Bg3 {[%emt 0:00:57]} Nf6 {[%emt 0:03:37]} 17. Qe2 {[%emt 0:00:23]} Nd7 {[%emt 0:00:23]} 18. e4 {[%emt 0:00:24]} Rf7 {[%emt 0:00:05]} 19. Qg4 {[%emt 0:00:46]} Nf8 {[%emt 0:00:15]} 20. Qe2 {[%emt 0:00:38]} Re8 {[%emt 0:00:15]} 21. Rac1 {[%emt 0:00:38]} Qd8 {[%emt 0:00:20]} 22. Rb1 {[%emt 0:00:51]} dxe4 {[%emt 0:01:02]} 23. Qxe4 {[%emt 0:00:10]} Bf6 {[%emt 0:00:09]} 24. Be5 {[%emt 0:00:08]} Nd7 {[%emt 0:00:15]} 25. Bxf6 {[%emt 0:00:11]} Nxf6 {[%emt 0:00:04]} 26. Qe3 {[%emt 0:00:24]} Ng4 {[%emt 0:00:18]} 27. Qe4 {[%emt 0:00:31]} Nf6 {[%emt 0:00:08]} 28. Qe3 {[%emt 0:00:09]} Nd5 {[%emt 0:00:22]} 29. Qd2 {[%emt 0:00:53]} Ref8 {[%emt 0:00:09]} 30. Ne4 {[%emt 0:00:47]} Nb6 {[%emt 0:01:16]} 31. Nc5 {[%emt 0:00:22]} Qd6 {[%emt 0:00:20]} 32. Rbe1 {[%emt 0:00:16]} Re8 {[%emt 0:00:05]} 33. Qb4 {[%emt 0:00:47]} Nd5 {[%emt 0:00:19]} 34. Qc4 {[%emt 0:01:34]} b6 {[%emt 0:01:30]} 35. Ne4 {[%emt 0:00:09]} Qd7 {[%emt 0:00:09]} 36. Ng5 {[%emt 0:02:36]} Rf5 {[%emt 0:00:37]} 37. Nf3 {[%emt 0:00:08]} Rc8 {[%emt 0:00:35]} 38. Qc2 {[%emt 0:00:57]} c5 {[%emt 0:00:25]} 39. dxc5 {[%emt 0:00:11]} Rxc5 {[%emt 0:00:04]} 40. Qe2 {[%emt 0:00:15]} Nf4 {[%emt 0:00:08]} 41. Qe3 {[%emt 0:00:31]} Qxd3 {[%emt 0:00:27]} 42. Qxd3 {[%emt 0:00:10]} Nxd3 {[%emt 0:00:03]} 43. Rxe6 {[%emt 0:00:06]} Nxb2 {[%emt 0:00:29]} 44. Re7 {[%emt 0:00:14]} Ra5 {[%emt 0:00:21]} 45. Nd4 {[%emt 0:00:07]} Rfe5 {[%emt 0:00:29]} 46. Rc7 {[%emt 0:01:43]} Rxa3 {[%emt 0:00:15]} 47. Rc2 {[%emt 0:00:17]} Nd3 {[%emt 0:00:11]} 48. Nf3 {[%emt 0:00:23]} Re7 {[%emt 0:00:11]} 49. Ng5 {[%emt 0:00:08]} Re8 {[%emt 0:00:11]} 50. h3 {[%emt 0:00:12]} Nf4 {[%emt 0:00:18]} 51. Rfc1 {[%emt 0:00:24]} h6 {[%emt 0:00:10]} 52. Rc8 {[%emt 0:00:08]} Kf8 {[%emt 0:00:18]} 53. Nh7+ {[%emt 0:00:05]} Kf7 {[%emt 0:00:08]} 54. Rxe8 {[%emt 0:00:47]} Kxe8 {[%emt 0:00:07]} 55. Rc8+ {[%emt 0:00:04]} Ke7 {[%emt 0:00:15]} 56. Rc7+ {[%emt 0:00:03]} Kd6 {[%emt 0:00:14]} 57. Rxg7 {[%emt 0:00:03]} b5 {[%emt 0:00:04]} 58. Nf6 {[%emt 0:00:04]} a5 {[%emt 0:00:20]} 59. Ne4+ {[%emt 0:00:04]} Ke6 {[%emt 0:00:12]} 60. Kh2 {[%emt 0:00:11]} b4 {[%emt 0:00:14]} 61. g3 {[%emt 0:00:09]} Ne2 {[%emt 0:00:13]} 62. Nd2 {[%emt 0:00:30]} Kf6 {[%emt 0:00:11]} 63. Rb7 {[%emt 0:00:06]} Ra2 {[%emt 0:00:05]} 64. Ne4+ {[%emt 0:00:04]} Ke5 {[%emt 0:00:13]} 65. Nc5 {[%emt 0:00:02]} Nd4 {[%emt 0:00:14]} 66. Kg2 {[%emt 0:00:13]} a4 {[%emt 0:00:11]} 67. Nd3+ {[%emt 0:00:06]} Ke4 {[%emt 0:00:14]} 68. Nxb4 {[%emt 0:00:02]} Rb2 {[%emt 0:00:16]} 69. Re7+ {[%emt 0:00:05]} Kf5 {[%emt 0:00:05]} 70. Nd5 {[%emt 0:00:06]} a3 {[%emt 0:00:06]} 71. Ra7 {[%emt 0:00:03]} Nc2 {[%emt 0:00:17]} 72. Nc3 {[%emt 0:00:12]} Rb3 {[%emt 0:00:30]} 73. Na2 {[%emt 0:00:09]} Rb2 {[%emt 0:00:05]} 74. Nc3 {[%emt 0:00:05]} Ke5 {[%emt 0:00:08]} 75. Ra4 {[%emt 0:00:56]} Ne1+ {[%emt 0:00:42]} 76. Kf1 {[%emt 0:00:18]} Nc2 {[%emt 0:00:08]} 77. Kg2 {[%emt 0:00:08]} Rb3 {[%emt 0:00:19]} 78. Na2 {[%emt 0:00:09]} Ne1+ {[%emt 0:00:23]} 79. Kf1 {[%emt 0:00:07]} Nd3 {[%emt 0:00:06]} 80. f4+ {[%emt 0:00:40]} Kd5 {[%emt 0:00:14]} 81. g4 {[%emt 0:00:22]} Nc5 {[%emt 0:00:14]} 82. Ra8 {[%emt 0:00:20]} Rb1+ {[%emt 0:00:05]} 83. Ke2 {[%emt 0:00:18]} Rb2+ {[%emt 0:00:03]} 84. Kd1 {[%emt 0:00:04]} Rxa2 {[%emt 0:00:04]} 85. Kc1 {[%emt 0:00:04]} Nd3+ {[%emt 0:00:17]} 86. Kb1 {[%emt 0:00:03]} Rb2+ {[%emt 0:00:14]} 87. Ka1 {[%emt 0:00:03]} a2 {[%emt 0:00:10]} 88. Rg8 {[%emt 0:00:12]} Rf2 {[%emt 0:00:10]} 89. Rxg6 {[%emt 0:00:07]} Nb4 {[%emt 0:00:04]} 90. Rxh6 {[%emt 0:00:08]} Rf1+ {[%emt 0:00:05]} 0-1

[Event "African Online-ch Women 2021"]
[Site "Online"]
[Date "2021.02.01"]
[Round "7.13"]
[White "Namangale, Susan"]
[Black "Castro, Neusa Aridas De"]
[Result "0-1"]
[ECO "D02"]
[WhiteElo "1344"]
[BlackElo "1512"]
[Annotator "NA RC"]
[PlyCount "64"]
[EventDate "2021.02.01"]
[EventType "swiss"]
[EventCountry "NET"]
[SourceTitle "playchess.com"]
[Source "ChessBase"]
[SourceQuality "1"]
[TimeControl "1500+10"]

1. Nf3 {[%emt 0:00:00]} e6 {[%emt 0:00:09]} 2. g3 {[%emt 0:00:05]} d5 {[%emt 0:00:03]} 3. d4 {[%emt 0:00:04]} Nf6 {[%emt 0:00:03]} 4. e3 {[%emt 0:00:13]} Be7 {[%emt 0:00:05]} 5. Bg2 {[%emt 0:00:03]} O-O {[%emt 0:00:03]} 6. O-O {[%emt 0:00:03]} c5 {[%emt 0:00:02]} 7. c3 {[%emt 0:00:21]} Nc6 {[%emt 0:00:08]} 8. b3 {[%emt 0:00:51]} Bd7 {[%emt 0:01:11]} 9. c4 {[%emt 0:00:37]} Qb6 {[%emt 0:00:24]} 10. dxc5 {[%emt 0:01:03]} Bxc5 {[%emt 0:00:44]} 11. Bb2 {[%emt 0:00:09]} Be7 {[%emt 0:00:16]} 12. cxd5 {[%emt 0:01:18]} Nxd5 {[%emt 0:00:20]} 13. e4 {[%emt 0:00:28]} Nf6 {[%emt 0:00:40]} 14. Ne5 {[%emt 0:01:34]} Nxe5 {[%emt 0:00:45]} 15. Bxe5 {[%emt 0:00:13]} Bc6 {[%emt 0:00:07]} 16. Nd2 {[%emt 0:01:09]} Rfd8 {[%emt 0:00:09]} 17. Bc3 {[%emt 0:00:50]} Bxe4 {[%emt 0:02:20]} 18. Bxe4 {[%emt 0:01:18]} Nxe4 {[%emt 0:00:16]} 19. Rc1 {[%emt 0:02:34]} Rac8 {[%emt 0:02:48]} 20. Qe2 {[%emt 0:00:59]} Nxc3 {[%emt 0:00:14]} 21. Qe1 {[%emt 0:02:50]} Nxa2 {[%emt 0:00:23]} 22. Rxc8 {[%emt 0:00:35]} Rxc8 {[%emt 0:00:05]} 23. Qb1 {[%emt 0:00:35]} Nb4 {[%emt 0:00:20]} 24. Nc4 {[%emt 0:00:30]} Qb5 {[%emt 0:00:28]} 25. Rd1 {[%emt 0:00:46]} Nd5 {[%emt 0:00:14]} 26. Rd4 {[%emt 0:01:30]} Bf6 {[%emt 0:00:13]} 27. Rd3 {[%emt 0:00:16]} Rxc4 {[%emt 0:00:41]} 28. Qa2 {[%emt 0:01:10]} Rc8 {[%emt 0:00:15]} 29. Qxa7 {[%emt 0:00:19]} Qxd3 {[%emt 0:00:15]} 30. Qxb7 {[%emt 0:00:49]} Rc1+ {[%emt 0:00:18]} 31. Kg2 {[%emt 0:00:05]} Qe4+ {[%emt 0:00:11]} 32. f3 {[%emt 0:00:32]} Nf4+ {[%emt 0:00:21]} 0-1

[Event "African Online-ch Women 2021"]
[Site "Online"]
[Date "2021.02.01"]
[Round "7.14"]
[White "Leboela, Maboloko"]
[Black "Ibtihal Mohammed"]
[Result "1-0"]
[ECO "B45"]
[WhiteElo "1296"]
[BlackElo "1491"]
[Annotator "NA RC"]
[PlyCount "97"]
[EventDate "2021.02.01"]
[EventType "swiss"]
[EventCountry "NET"]
[SourceTitle "playchess.com"]
[Source "ChessBase"]
[SourceQuality "1"]
[TimeControl "1500+10"]

1. e4 {[%emt 0:00:00]} c5 {[%emt 0:00:07]} 2. Nf3 {[%emt 0:00:04]} e6 {[%emt 0:00:04]} 3. d4 {[%emt 0:00:03]} cxd4 {[%emt 0:00:02]} 4. Nxd4 {[%emt 0:00:02]} Nc6 {[%emt 0:00:02]} 5. Nc3 {[%emt 0:00:04]} Bc5 {[%emt 0:00:06]} 6. Nb3 {[%emt 0:00:06]} Bb6 {[%emt 0:00:06]} 7. Na4 {[%emt 0:00:07]} Bc7 {[%emt 0:00:04]} 8. Be2 {[%emt 0:00:15]} Nge7 {[%emt 0:00:03]} 9. O-O {[%emt 0:00:08]} O-O {[%emt 0:00:03]} 10. Bd3 {[%emt 0:00:05]} h6 {[%emt 0:00:04]} 11. Qg4 {[%emt 0:00:06]} Ng6 {[%emt 0:00:08]} 12. f4 {[%emt 0:00:07]} Qh4 {[%emt 0:00:10]} 13. Qf3 {[%emt 0:00:20]} Nd4 {[%emt 0:00:07]} 14. Nxd4 {[%emt 0:00:06]} a6 {[%emt 0:00:16]} 15. Nc3 {[%emt 0:00:04]} Bb6 {[%emt 0:00:05]} 16. Be3 {[%emt 0:00:07]} d5 {[%emt 0:00:22]} 17. exd5 {[%emt 0:00:16]} e5 {[%emt 0:00:15]} 18. Nde2 {[%emt 0:00:06]} Bxe3+ {[%emt 0:00:20]} 19. Qxe3 {[%emt 0:00:04]} exf4 {[%emt 0:00:07]} 20. Nxf4 {[%emt 0:00:04]} Ne7 {[%emt 0:00:33]} 21. d6 {[%emt 0:00:07]} Nc6 {[%emt 0:00:07]} 22. Qf2 {[%emt 0:00:11]} Qg5 {[%emt 0:00:29]} 23. Ne4 {[%emt 0:00:09]} Qe5 {[%emt 0:00:10]} 24. c3 {[%emt 0:00:26]} Bd7 {[%emt 0:00:21]} 25. Rae1 {[%emt 0:00:07]} Qa5 {[%emt 0:01:59]} 26. a3 {[%emt 0:00:12]} Ne5 {[%emt 0:00:10]} 27. Bb1 {[%emt 0:00:07]} Rac8 {[%emt 0:00:41]} 28. Nd3 {[%emt 0:00:26]} Nc4 {[%emt 0:01:18]} 29. Ndc5 {[%emt 0:00:13]} Bc6 {[%emt 0:03:05]} 30. d7 {[%emt 0:00:05]} Rcd8 {[%emt 0:00:49]} 31. Ba2 {[%emt 0:00:13]} Ne5 {[%emt 0:00:13]} 32. Qf5 {[%emt 0:00:20]} Nxd7 {[%emt 0:00:32]} 33. Nxd7 {[%emt 0:00:08]} Qxf5 {[%emt 0:00:16]} 34. Rxf5 {[%emt 0:00:08]} Rxd7 {[%emt 0:00:20]} 35. Nc5 {[%emt 0:00:05]} Rd2 {[%emt 0:00:08]} 36. Rf2 {[%emt 0:00:04]} Rfd8 {[%emt 0:00:10]} 37. Ree2 {[%emt 0:00:43]} Rd1+ {[%emt 0:00:23]} 38. Rf1 {[%emt 0:00:05]} Rxf1+ {[%emt 0:00:10]} 39. Kxf1 {[%emt 0:00:03]} Bb5 {[%emt 0:00:04]} 40. c4 {[%emt 0:00:03]} Bc6 {[%emt 0:00:07]} 41. Kf2 {[%emt 0:00:04]} a5 {[%emt 0:00:04]} 42. g3 {[%emt 0:00:28]} b6 {[%emt 0:00:06]} 43. Ne4 {[%emt 0:00:07]} Rd4 {[%emt 0:00:07]} 44. Nc3 {[%emt 0:00:05]} Rd6 {[%emt 0:00:14]} 45. b4 {[%emt 0:00:06]} axb4 {[%emt 0:00:11]} 46. axb4 {[%emt 0:00:02]} Rd3 {[%emt 0:00:06]} 47. b5 {[%emt 0:00:09]} Bb7 {[%emt 0:00:19]} 48. Re8+ {[%emt 0:00:05]} Kh7 {[%emt 0:00:06]} 49. Bb1 {[%emt 0:00:02]} 1-0

[Event "African Online-ch Women 2021"]
[Site "Online"]
[Date "2021.02.01"]
[Round "7.15"]
[White "Karania, Saloni"]
[Black "Jambo, Linda"]
[Result "0-1"]
[ECO "D11"]
[WhiteElo "1304"]
[BlackElo "1478"]
[Annotator "NA RC"]
[PlyCount "112"]
[EventDate "2021.02.01"]
[EventType "swiss"]
[EventCountry "NET"]
[SourceTitle "playchess.com"]
[Source "ChessBase"]
[SourceQuality "1"]
[TimeControl "1500+10"]

1. d4 {[%emt 0:00:00]} Nf6 {[%emt 0:00:13]} 2. c4 {[%emt 0:00:04]} d5 {[%emt 0:00:07]} 3. Nc3 {[%emt 0:00:06]} c6 {[%emt 0:00:18]} 4. Nf3 {[%emt 0:00:13]} Bg4 {[%emt 0:00:08]} 5. e3 {[%emt 0:00:12]} e6 {[%emt 0:00:10]} 6. h3 {[%emt 0:00:10]} Bh5 {[%emt 0:00:05]} 7. Be2 {[%emt 0:00:06]} Bb4 {[%emt 0:00:07]} 8. Bd2 {[%emt 0:00:23]} O-O {[%emt 0:00:05]} 9. a3 {[%emt 0:00:08]} Be7 {[%emt 0:00:19]} 10. Qc2 {[%emt 0:00:40]} dxc4 {[%emt 0:00:17]} 11. Bxc4 {[%emt 0:00:26]} Bxf3 {[%emt 0:00:05]} 12. gxf3 {[%emt 0:00:03]} Nbd7 {[%emt 0:00:19]} 13. e4 {[%emt 0:00:16]} Nb6 {[%emt 0:00:07]} 14. Bd3 {[%emt 0:00:23]} Qxd4 {[%emt 0:00:15]} 15. Be3 {[%emt 0:00:19]} Qd8 {[%emt 0:00:41]} 16. O-O-O {[%emt 0:00:11]} Qc7 {[%emt 0:00:30]} 17. Rhg1 {[%emt 0:00:14]} Bd6 {[%emt 0:02:58]} 18. Ne2 {[%emt 0:01:18]} Rfd8 {[%emt 0:01:51]} 19. f4 {[%emt 0:00:21]} Bf8 {[%emt 0:01:16]} 20. e5 {[%emt 0:00:25]} Nfd5 {[%emt 0:00:13]} 21. Bxh7+ {[%emt 0:01:00]} Kh8 {[%emt 0:00:03]} 22. Bxb6 {[%emt 0:00:35]} Qxb6 {[%emt 0:00:43]} 23. Be4 {[%emt 0:00:27]} Qxf2 {[%emt 0:00:44]} 24. Rgf1 {[%emt 0:00:56]} Qc5 {[%emt 0:01:40]} 25. Qxc5 {[%emt 0:00:49]} Bxc5 {[%emt 0:00:04]} 26. Rf3 {[%emt 0:00:30]} f5 {[%emt 0:02:13]} 27. exf6 {[%emt 0:00:32]} gxf6 {[%emt 0:00:13]} 28. f5 {[%emt 0:00:41]} e5 {[%emt 0:00:25]} 29. h4 {[%emt 0:01:16]} Rd6 {[%emt 0:03:05]} 30. Rh1 {[%emt 0:00:52]} Rad8 {[%emt 0:00:10]} 31. b4 {[%emt 0:00:41]} Be3+ {[%emt 0:00:18]} 32. Kc2 {[%emt 0:00:27]} Bf4 {[%emt 0:00:12]} 33. Bxd5 {[%emt 0:00:11]} Rxd5 {[%emt 0:00:07]} 34. Nxf4 {[%emt 0:00:12]} exf4 {[%emt 0:00:02]} 35. Rxf4 {[%emt 0:00:04]} Rd2+ {[%emt 0:00:05]} 36. Kc1 {[%emt 0:00:13]} Ra2 {[%emt 0:00:09]} 37. Rff1 {[%emt 0:01:41]} Rxa3 {[%emt 0:01:20]} 38. Rd1 {[%emt 0:00:20]} Rxd1+ {[%emt 0:00:06]} 39. Rxd1 {[%emt 0:00:04]} Ra1+ {[%emt 0:00:23]} 40. Kc2 {[%emt 0:00:02]} Rxd1 {[%emt 0:00:03]} 41. Kxd1 {[%emt 0:00:02]} Kg7 {[%emt 0:00:04]} 42. Kc2 {[%emt 0:00:07]} Kh6 {[%emt 0:00:03]} 43. Kc3 {[%emt 0:00:04]} Kh5 {[%emt 0:00:02]} 44. Kd4 {[%emt 0:00:02]} Kxh4 {[%emt 0:00:02]} 45. Kc5 {[%emt 0:00:03]} Kg5 {[%emt 0:00:06]} 46. Kd6 {[%emt 0:00:05]} Kxf5 {[%emt 0:00:03]} 47. Ke7 {[%emt 0:00:02]} Ke5 {[%emt 0:00:05]} 48. Kf7 {[%emt 0:00:03]} f5 {[%emt 0:00:03]} 49. Ke7 {[%emt 0:00:02]} f4 {[%emt 0:00:04]} 50. Kd7 {[%emt 0:00:01]} f3 {[%emt 0:00:04]} 51. Kc7 {[%emt 0:00:01]} f2 {[%emt 0:00:03]} 52. Kxb7 {[%emt 0:00:01]} f1=Q {[%emt 0:00:06]} 53. Kxa7 {[%emt 0:00:04]} Qb5 {[%emt 0:00:05]} 54. Ka8 {[%emt 0:00:02]} Kd6 {[%emt 0:00:04]} 55. Ka7 {[%emt 0:00:05]} Kc7 {[%emt 0:00:04]} 56. Ka8 {[%emt 0:00:02]} Qb7# {[%emt 0:00:03]} 0-1

[Event "African Online-ch Women 2021"]
[Site "Online"]
[Date "2021.02.01"]
[Round "8.3"]
[White "Charinda, Kudzanayi"]
[Black "Latreche, Sabrina"]
[Result "0-1"]
[ECO "C56"]
[WhiteElo "1710"]
[BlackElo "2076"]
[Annotator "RC"]
[PlyCount "72"]
[EventDate "2021.02.01"]
[EventType "swiss"]
[EventCountry "NET"]
[SourceTitle "playchess.com"]
[Source "ChessBase"]
[SourceQuality "1"]
[TimeControl "1500+10"]

1. e4 {[%emt 0:00:00]} e5 {[%emt 0:00:03]} 2. Nf3 {[%emt 0:00:03]} Nc6 {[%emt 0:00:02]} 3. d4 {[%emt 0:00:12]} exd4 {[%emt 0:00:03]} 4. Bc4 {[%emt 0:00:05]} Nf6 {[%emt 0:00:10]} 5. e5 {[%emt 0:00:07]} d5 {[%emt 0:00:02]} 6. Bb5 {[%emt 0:00:03]} Ne4 {[%emt 0:00:03]} 7. Nxd4 {[%emt 0:00:06]} Bc5 {[%emt 0:00:09]} 8. O-O {[%emt 0:00:50]} Bd7 {[%emt 0:01:02]} 9. Bxc6 {[%emt 0:00:06]} bxc6 {[%emt 0:00:03]} 10. f3 {[%emt 0:00:55]} Ng5 {[%emt 0:00:20]} 11. f4 {[%emt 0:00:12]} Ne4 {[%emt 0:00:10]} 12. Be3 {[%emt 0:00:04]} O-O {[%emt 0:00:34]} 13. Nd2 {[%emt 0:00:18]} Nxd2 {[%emt 0:01:10]} 14. Qxd2 {[%emt 0:00:04]} f6 {[%emt 0:01:22]} 15. Nb3 {[%emt 0:02:40]} Bb6 {[%emt 0:01:00]} 16. Bc5 {[%emt 0:01:34]} fxe5 {[%emt 0:04:09]} 17. fxe5 {[%emt 0:00:26]} Qh4 {[%emt 0:01:22]} 18. Kh1 {[%emt 0:01:13]} Rfe8 {[%emt 0:00:09]} 19. Rf4 {[%emt 0:02:12]} Qh5 {[%emt 0:00:18]} 20. Raf1 {[%emt 0:00:37]} Qxe5 {[%emt 0:00:25]} 21. Qf2 {[%emt 0:02:09]} h6 {[%emt 0:01:16]} 22. Qg3 {[%emt 0:01:55]} g5 {[%emt 0:04:27]} 23. h4 {[%emt 0:02:18]} Bxc5 {[%emt 0:02:00]} 24. Nxc5 {[%emt 0:00:16]} Qd6 {[%emt 0:04:17]} 25. Nxd7 {[%emt 0:01:17]} Qxd7 {[%emt 0:00:05]} 26. hxg5 {[%emt 0:00:14]} h5 {[%emt 0:02:03]} 27. g6 {[%emt 0:00:45]} Re4 {[%emt 0:00:29]} 28. Rf7 {[%emt 0:01:20]} Qg4 {[%emt 0:00:21]} 29. Qxc7 {[%emt 0:01:10]} Qxg6 {[%emt 0:00:17]} 30. R7f6 {[%emt 0:02:25]} Qg5 {[%emt 0:01:28]} 31. Qf7+ {[%emt 0:02:33]} Kh8 {[%emt 0:00:02]} 32. g3 {[%emt 0:01:37]} Rg8 {[%emt 0:00:41]} 33. R6f3 {[%emt 0:00:32]} h4 {[%emt 0:00:06]} 34. Kg2 {[%emt 0:00:07]} Re2+ {[%emt 0:00:11]} 35. Kh1 {[%emt 0:00:09]} hxg3 {[%emt 0:00:05]} 36. Rxg3 {[%emt 0:00:08]} Qh4+ {[%emt 0:00:04]} 0-1